bitfinex/quotes_ETHUSD_20260125
["timestamp","ask_amount","ask_price","bid_price","bid_amount"]
[1769365468767,0.0008,2871.3,2870.0,12.95726699]
[1769365468768,0.0008,2871.3,2870.2,0.73]
[1769365469745,0.0008,2871.3,2870.0,0.73]
[1769365469952,0.0008,2871.3,2870.0,13.68726699]
[1769365470333,0.0008,2871.3,2870.0,0.73]
[1769365470540,0.46849682,2871.3,2870.1,0.73]
[1769365470731,0.0008,2871.3,2870.1,13.68726699]
[1769365470936,0.0008,2871.3,2870.2,14.32599369]
[1769365471366,14.071461,2871.2,2869.8,13.68726699]
[1769365471534,0.0008,2871.3,2869.8,13.68726699]
[1769365472370,0.0008,2871.3,2869.8,12.95726699]
[1769365472576,0.0008,2871.3,2869.2,0.87130193]
[1769365472577,0.8707328,2871.2,2869.9,0.73]
[1769365472772,0.001,2871.1,2870.0,0.73]
[1769365472974,0.001,2871.1,2869.5,12.95726699]
[1769365473266,0.001,2871.1,2870.0,0.73]
[1769365473448,0.001,2871.1,2870.0,13.14346995]
[1769365475953,0.001,2871.1,2870.0,14.01454441]
[1769365476358,0.001,2871.1,2870.0,13.14346995]
[1769365478483,6.35,2871.7,2870.0,13.14346995]
[1769365478687,13.33162798,2871.6,2870.0,12.41346995]
[1769365478887,12.46103219,2871.0,2869.2,12.41346995]
[1769365479101,8.232196,2870.7,2869.7,0.73]
[1769365479270,2.06932282,2870.6,2869.7,0.73]
[1769365480162,2.06932282,2870.6,2869.6,0.73]
[1769365480562,2.06932282,2870.6,2869.2,12.41346995]
[1769365480803,2.06932282,2870.6,2869.3,0.73]
[1769365481372,2.06932282,2870.6,2869.3,13.14346995]
[1769365481568,13.33181334,2871.0,2869.4,1.314347]
[1769365482596,6.805057,2870.4,2868.0,0.09815999]
[1769365482810,12.46103219,2870.1,2868.4,12.41346995]
[1769365483010,2.028455,2870.0,2868.5,0.73]
[1769365483186,1.44894872,2869.9,2868.6,13.72781695]
[1769365483386,3.446,2870.3,2868.6,13.72781695]
[1769365484521,3.48371363,2870.6,2868.6,13.72681989]
[1769365484522,0.8709214,2870.6,2868.6,13.72681989]
[1769365484817,6.9615703,2870.5,2868.6,13.72681989]
[1769365485119,5.965567,2870.3,2869.4,0.002]
[1769365485830,12.46103219,2870.3,2869.4,0.002]
[1769365485984,1.85471802,2870.2,2869.4,0.002]
[1769365486390,0.2335703,2870.6,2869.4,0.002]
[1769365486586,5.964651,2870.3,2869.4,0.002]
[1769365486806,12.46103219,2870.2,2869.4,0.002]
[1769365487498,12.46103219,2869.4,2868.2,0.00100098]
[1769365488723,4.402,2869.5,2868.0,3.92e-06]
[1769365488724,12.82260249,2868.9,2868.0,3.92e-06]
[1769365488919,2.72631765,2868.8,2868.0,3.92e-06]
[1769365489214,12.46103219,2868.6,2867.7,0.00040588]
[1769365489421,0.73,2868.5,2867.7,0.00040588]
[1769365491125,12.46103219,2868.6,2867.7,0.00040588]
[1769365491299,0.87146133,2868.8,2867.7,0.00040588]
[1769365491300,0.73,2868.5,2867.7,0.00040588]
[1769365491827,14.06256783,2868.5,2867.7,0.00040588]
[1769365492032,1.75486738,2868.4,2867.7,0.00040588]
[1769365493133,0.73,2868.5,2867.7,0.00040588]
[1769365493627,1.81723316,2868.4,2867.7,0.00040588]
[1769365494643,12.69460249,2868.3,2866.8,0.00100097]
[1769365495016,0.8716268,2868.2,2866.8,0.00100097]
[1769365495212,1.70526572,2868.1,2866.9,0.73255105]
[1769365495518,42.46103219,2869.7,2867.8,12.41346995]
[1769365495718,15.338416,2869.6,2867.8,12.41346995]
[1769365496237,9.687416,2869.5,2867.8,12.41346995]
[1769365496441,12.46103219,2869.2,2867.4,12.41346995]
[1769365496745,8.334991,2869.0,2867.4,13.65481695]
[1769365496945,12.69460249,2868.9,2867.4,1.241347]
[1769365497113,0.73,2868.8,2867.9,0.001]
[1769365497443,0.001,2868.3,2867.0,13.14147289]
[1769365497627,0.001,2868.3,2867.6,0.002]
[1769365499841,0.001,2868.3,2867.6,12.41546995]
[1769365500421,0.001,2868.3,2867.6,0.002]
[1769365501441,0.001,2868.3,2867.6,0.001]
[1769365501645,0.2335703,2867.9,2866.7,0.00100391]
[1769365501825,6.772047,2867.7,2866.7,0.00100391]
[1769365502020,0.61602733,2867.9,2866.7,0.00100391]
[1769365502341,0.3615703,2868.1,2866.7,0.00100391]
[1769365502546,0.73,2867.9,2866.7,0.00100391]
[1769365502742,3.973,2867.8,2866.7,0.00100391]
[1769365503046,0.73,2867.9,2866.7,0.00100391]
[1769365503442,12.01602943,2867.8,2866.7,0.00100391]
[1769365503646,0.2335703,2867.4,2866.3,0.002]
[1769365504018,29.431958,2867.4,2866.3,0.002]
[1769365504215,0.2335703,2867.5,2866.3,0.002]
[1769365504430,25.428081,2867.4,2866.3,0.002]
[1769365504618,12.01602943,2867.6,2866.3,0.002]
[1769365504619,0.73,2867.6,2866.3,0.002]
[1769365504947,9.13935,2867.4,2866.3,0.002]
[1769365505151,0.87196121,2867.1,2866.0,0.002]
[1769365505448,23.520851,2867.0,2866.0,0.002]
[1769365505653,12.88799064,2867.1,2866.0,0.002]
[1769365505654,12.01602943,2867.1,2866.0,0.002]
[1769365505947,0.341,2867.5,2866.0,12.98144123]
[1769365506151,0.2335703,2867.5,2866.1,1.29814412]
[1769365506321,0.2335703,2867.3,2866.0,0.002]
[1769365506516,12.24959973,2867.1,2866.0,0.002]
[1769365506748,19.168664,2867.0,2866.0,0.001]
[1769365506937,16.987291,2866.8,2865.2,13.70744417]
[1769365507127,4.901417,2866.8,2865.2,13.70744417]
[1769365507451,1.76474464,2866.7,2865.3,1.45800048]
[1769365507747,1.76474464,2866.7,2865.3,12.97944123]
[1769365508046,0.128,2867.2,2865.3,12.97944123]
[1769365508450,0.2335703,2867.5,2865.8,12.97944123]
[1769365508827,12.01602943,2867.3,2865.3,12.97944123]
[1769365509020,0.2335703,2867.5,2866.7,0.001]
[1769365509227,0.128,2867.6,2866.0,12.97844417]
[1769365509441,1.22421855,2867.6,2866.5,0.002]
[1769365509645,0.7318,2868.1,2866.5,0.002]
[1769365509829,1.00046938,2868.1,2866.5,12.98144123]
[1769365510032,1.00046245,2868.1,2866.5,12.98144123]
[1769365510255,0.0008,2868.1,2866.5,12.98144123]
[1769365510755,0.0008,2868.1,2866.7,12.97944123]
[1769365510928,20.01974743,2868.0,2866.5,0.002]
[1769365511135,0.2335703,2867.7,2866.5,0.002]
[1769365511452,5.216002,2867.6,2866.5,0.002]
[1769365511750,12.01602943,2867.3,2865.5,13.70944319]
[1769365511951,12.01602943,2867.3,2865.6,1.37094432]
[1769365513025,12.01602943,2867.3,2865.6,14.35038555]
[1769365513465,0.2335703,2867.4,2865.6,14.35038555]
[1769365515280,3.6728,2868.1,2865.7,12.92895336]
[1769365515568,3.6728,2868.1,2866.4,11.95841629]
[1769365515569,3.18407,2867.9,2866.4,11.95841629]
[1769365515770,0.0008,2868.1,2866.5,12.68941629]
[1769365515930,0.0008,2868.1,2866.7,11.95841629]
[1769365516124,0.0008,2868.1,2866.9,11.95841629]
[1769365516368,0.0008,2868.1,2866.8,1.26894163]
[1769365516567,0.0008,2868.1,2866.7,11.95841629]
[1769365516778,0.0008,2868.1,2866.9,0.731]
[1769365517066,0.0008,2868.1,2866.9,12.68941629]
[1769365517245,0.0008,2868.1,2867.0,0.731]
[1769365517429,0.0008,2868.1,2866.9,0.731]
[1769365517629,0.47388389,2868.1,2866.9,0.731]
[1769365517831,6.36142819,2868.0,2866.0,11.95841629]
[1769365518146,0.48177418,2868.1,2865.8,2.73099801]
[1769365518147,0.68432024,2867.9,2866.7,11.95841629]
[1769365518466,0.0008,2868.1,2866.7,12.83048261]
[1769365518664,0.0008,2868.1,2866.7,11.95841629]
[1769365518840,0.0008,2868.1,2866.7,12.83048834]
[1769365519157,0.0008,2868.1,2866.9,11.95841629]
[1769365519936,0.0008,2868.1,2866.9,12.83042831]
[1769365520261,0.0008,2868.1,2867.0,1.35614283]
[1769365520430,0.2266518,2868.7,2867.0,1.35614283]
[1769365520634,42.68703255,2868.4,2866.7,0.731]
[1769365520827,30.0,2868.2,2866.7,0.731]
[1769365521056,30.0,2868.2,2866.3,11.95841629]
[1769365521246,13.55872013,2868.0,2866.3,11.95841629]
[1769365521541,0.001,2867.9,2866.4,0.731]
[1769365521737,1.26880325,2867.8,2866.5,1.26894163]
[1769365521959,1.26880325,2867.8,2866.4,0.731]
[1769365522277,13.9558358,2867.8,2866.1,1.19584163]
[1769365522459,13.9558358,2867.8,2865.8,13.8170844]
[1769365522460,12.92060285,2867.7,2865.8,13.8170844]
[1769365522659,12.92060285,2867.7,2865.9,0.731]
[1769365522859,0.2335703,2867.5,2865.9,0.731]
[1769365523066,12.92060285,2867.5,2865.8,13.8170844]
[1769365523246,12.92060285,2867.5,2865.9,0.731]
[1769365523449,1.29206029,2867.4,2866.0,1.45480844]
[1769365524072,13.97909284,2867.4,2865.8,12.68941629]
[1769365525776,14.85097463,2867.4,2865.8,12.68941629]
[1769365526340,13.97909284,2867.4,2865.8,12.68941629]
[1769365526549,1.29206029,2867.4,2865.8,13.56176211]
[1769365526744,42.68703255,2867.7,2865.9,13.3145925]
[1769365526943,3.08119,2867.6,2865.9,13.3145925]
[1769365527139,0.001,2867.9,2866.6,11.95841629]
[1769365527351,0.001,2867.9,2865.9,1.35617621]
[1769365527352,0.001,2867.9,2866.8,11.95841629]
[1769365527753,0.001,2867.9,2866.8,12.83046705]
[1769365527985,0.001,2867.9,2867.0,11.95841629]
[1769365530342,0.128,2868.9,2867.0,12.83040402]
[1769365530573,13.979988,2868.9,2867.1,11.95841629]
[1769365530778,12.68703255,2868.8,2867.2,0.731]
[1769365531286,6.932524,2868.7,2867.3,0.731]
[1769365531488,12.68703255,2868.8,2867.3,1.99994163]
[1769365531489,1.96195566,2868.6,2867.3,1.99994163]
[1769365532340,1.96195566,2868.6,2867.4,0.731]
[1769365532545,2.83346575,2868.6,2867.5,0.731]
[1769365533061,11.244443,2868.5,2867.5,0.731]
[1769365533376,23.4439769,2868.5,2866.9,1.35614671]
[1769365533548,1.95077771,2868.4,2867.2,0.731]
[1769365533747,14.15031161,2868.4,2867.2,0.731]
[1769365534145,14.15031161,2868.4,2867.1,0.733]
[1769365535282,1.95077771,2868.4,2867.1,0.733]
[1769365535472,0.87155436,2868.5,2867.2,0.731]
[1769365536083,0.87155436,2868.5,2867.1,0.002]
[1769365536269,0.87155436,2868.5,2867.2,0.731]
[1769365537092,13.07108826,2868.5,2867.2,0.731]
[1769365537275,12.1995339,2868.5,2867.2,0.731]
[1769365537460,1.30720588,2868.4,2867.2,0.731]
[1769365538460,1.30720588,2868.4,2867.3,11.87073447]
[1769365538664,0.001,2868.6,2867.3,11.87073447]
[1769365541301,0.001,2868.6,2867.3,12.74263446]
[1769365541665,0.87191283,2869.9,2867.6,11.87073447]
[1769365541991,0.128,2869.8,2867.6,11.87073447]
[1769365542188,12.1995339,2869.5,2867.7,1.61575179]
[1769365542388,0.128,2869.5,2867.5,12.60173447]
[1769365542558,0.128,2869.5,2867.7,11.87073447]
[1769365542961,6.994338,2869.8,2867.9,11.87073447]
[1769365543188,13.07146873,2869.9,2868.0,0.73]
[1769365543189,29.1201429,2869.5,2868.0,0.73]
[1769365543390,14.388943,2869.3,2867.9,11.87073447]
[1769365543578,2.65884769,2869.2,2867.8,0.73]
[1769365543774,5.032495,2869.3,2867.8,0.73]
[1769365544390,0.2335703,2869.6,2867.8,12.60073447]
[1769365544692,26.3598009,2869.4,2867.9,0.73]
[1769365544893,2.73901,2869.3,2867.9,0.73]
[1769365545077,12.1995339,2869.4,2867.9,0.73]
[1769365545274,3.97176339,2869.3,2868.0,1.26007345]
[1769365545485,1.23275339,2869.3,2868.0,1.26007345]
[1769365547295,0.001,2869.1,2868.0,1.26007345]
[1769365550099,0.001,2869.1,2868.0,13.13080792]
[1769365550966,0.001,2869.1,2868.0,1.99007345]
[1769365551172,1.22005339,2869.0,2868.0,0.73]
[1769365551682,1.22005339,2869.0,2867.9,0.73]
[1769365552485,1.22005339,2869.0,2867.9,12.60073447]
[1769365552697,0.001,2869.1,2867.9,12.60073447]
[1769365553414,0.001,2869.1,2867.9,0.73]
[1769365553908,2.319648,2868.2,2867.3,0.002]
[1769365554200,3.036,2868.2,2867.3,0.002]
[1769365554404,12.1995339,2868.7,2867.3,0.002]
[1769365554605,12.1995339,2868.5,2867.3,0.002]
[1769365554802,5.524483,2868.6,2867.3,0.002]
[1769365554803,12.1995339,2868.3,2867.3,0.002]
[1769365554978,12.1995339,2868.7,2867.3,0.002]
[1769365555175,15.8715339,2868.7,2867.3,0.002]
[1769365555404,3.672,2868.5,2867.3,0.002]
[1769365555587,15.8715339,2868.5,2867.3,0.002]
[1769365556179,12.1995339,2868.5,2867.3,0.002]
[1769365559710,1.61051042,2868.6,2867.5,0.002]
[1769365559908,12.1995339,2868.5,2867.5,0.002]
[1769365560109,1.37747677,2868.7,2867.5,0.002]
[1769365560298,4.428564,2868.7,2867.5,0.002]
[1769365560498,0.128,2868.7,2867.5,0.002]
[1769365560699,0.2335703,2868.4,2867.3,0.002]
[1769365560900,23.519089,2867.7,2865.9,1.35817621]
[1769365561111,0.49839024,2867.8,2866.1,11.87273447]
[1769365561414,2.211888,2867.9,2866.3,11.87073447]
[1769365561627,12.63992995,2868.4,2866.5,11.87073447]
[1769365561782,0.44039605,2868.4,2866.7,11.87073447]
[1769365561989,0.128,2868.5,2866.9,11.87073447]
[1769365562316,0.128,2868.5,2866.8,1.92688905]
[1769365562317,12.1995339,2868.3,2866.8,1.92688905]
[1769365562484,12.1995339,2868.2,2866.8,0.73]
[1769365563295,0.2335703,2868.4,2866.8,12.84054899]
[1769365563498,13.24671107,2868.3,2866.8,0.73]
[1769365563822,22.910639,2867.9,2866.4,12.11054899]
[1769365564023,13.10511466,2867.9,2866.4,12.11054899]
[1769365564228,1.31051147,2867.8,2866.5,1.2110549]
[1769365564526,1.31051147,2867.8,2866.1,0.732]
[1769365564527,12.37511466,2867.6,2866.1,0.732]
[1769365564814,12.37511466,2867.4,2866.1,0.002]
[1769365565184,0.2335703,2867.3,2866.1,0.002]
[1769365565392,13.24716712,2866.8,2865.3,0.002]
[1769365565630,12.60868496,2866.6,2865.3,0.002]
[1769365565839,20.426704,2866.3,2864.7,12.09454899]
[1769365566119,13.63598316,2866.5,2864.5,0.73]
[1769365566120,12.60868496,2866.1,2864.5,0.73]
[1769365566323,0.73,2866.0,2864.5,0.73]
[1769365567589,1.6023209,2866.0,2864.5,0.73]
[1769365568096,1.6023209,2866.0,2864.2,12.11254899]
[1769365568097,42.50311466,2865.8,2864.2,0.002]
[1769365568288,0.2335703,2865.5,2864.2,0.002]
[1769365568489,3.0227101,2865.7,2864.2,0.002]
[1769365568689,7.107806,2865.6,2864.2,0.002]
[1769365568915,3.703322,2865.5,2864.2,0.002]
[1769365569430,0.128,2865.8,2864.2,0.002]
[1769365569635,0.731,2865.6,2864.2,12.11254899]
[1769365569842,0.128,2866.0,2864.2,12.11254899]
[1769365570030,4.535536,2865.6,2864.3,1.2112549]
[1769365570340,4.038536,2865.6,2864.2,0.002]
[1769365570511,0.731,2865.7,2864.2,0.002]
[1769365570711,3.221416,2865.6,2864.2,0.002]
[1769365571033,0.731,2865.7,2864.2,12.11254899]
[1769365571217,0.181826,2866.1,2864.2,12.11254899]
[1769365571420,1.53455747,2866.1,2864.4,12.11054899]
[1769365571611,1.53455747,2866.1,2864.6,12.11054899]
[1769365571811,2.26555747,2866.1,2864.6,12.11054899]
[1769365572315,6.360244,2867.0,2864.8,12.11054899]
[1769365572518,12.37511466,2867.1,2864.8,12.11054899]
[1769365572519,0.731,2866.9,2864.8,12.11054899]
[1769365572714,0.18177059,2866.6,2864.8,12.11054899]
[1769365572932,12.37511466,2867.1,2864.8,12.11054899]
[1769365573124,2.360895,2866.9,2865.0,12.11054899]
[1769365573437,2.360895,2866.9,2864.9,0.09815607]
[1769365573438,15.89270866,2866.6,2865.1,1.22087051]
[1769365573606,15.89270866,2866.6,2864.8,12.11054899]
[1769365573607,9.050912,2866.5,2864.8,12.11054899]
[1769365573940,9.050912,2866.5,2864.6,0.731]
[1769365573941,0.2335703,2866.4,2864.6,0.731]
[1769365574111,21.166062,2866.3,2864.6,0.731]
[1769365574315,0.2360895,2866.8,2865.3,12.11054899]
[1769365574507,26.874284,2867.0,2865.3,12.84154899]
[1769365574811,26.874284,2867.0,2864.4,3.49305577]
[1769365574812,0.2335703,2865.9,2864.4,0.002]
[1769365575138,8.677253,2865.6,2864.4,0.002]
[1769365575311,3.982252,2865.6,2864.4,0.002]
[1769365575511,4.85468545,2865.6,2864.4,0.002]
[1769365575712,1.72044842,2865.5,2864.4,0.002]
[1769365576206,2.41869,2865.4,2864.4,0.002]
[1769365576527,0.18176609,2866.8,2864.9,11.80558887]
[1769365576842,12.22179879,2866.6,2865.0,0.731]
[1769365577007,1.05381867,2866.8,2865.0,0.731]
[1769365577008,0.128,2866.4,2865.0,0.731]
[1769365577208,1.23497988,2866.3,2865.0,0.731]
[1769365577413,0.30976609,2866.8,2865.0,12.53658887]
[1769365577613,1.18183228,2866.8,2865.0,11.80558887]
[1769365577840,1.18183228,2866.8,2865.1,0.731]
[1769365577841,2.547077,2866.7,2865.1,0.731]
[1769365578037,4.73769,2866.6,2865.1,0.731]
[1769365578335,3.22269,2866.6,2865.1,0.731]
[1769365578542,2.40868,2866.6,2865.1,0.731]
[1769365578727,0.253668,2866.5,2865.2,1.25365889]
[1769365578932,4.75724,2866.6,2865.2,1.25365889]
[1769365579435,0.18176609,2866.8,2865.2,1.25365889]
[1769365579634,0.18176609,2866.8,2865.2,13.93178036]
[1769365579843,3.165151,2867.0,2865.3,0.731]
[1769365580045,28.97246712,2866.9,2865.2,1.25365889]
[1769365580233,4.29883,2866.7,2864.8,11.80558887]
[1769365580549,21.913163,2866.8,2864.9,1.60362964]
[1769365580713,21.913163,2866.8,2864.8,11.80558887]
[1769365580714,0.2335703,2866.2,2864.3,11.80558887]
[1769365580916,10.36593,2866.1,2864.5,0.731]
[1769365581748,10.36593,2866.1,2864.3,11.80558887]
[1769365581914,11.038844,2865.9,2864.6,0.731]
[1769365582247,11.052844,2865.9,2864.6,0.731]
[1769365582620,0.2335703,2866.0,2864.4,0.002]
[1769365582621,18.79573,2865.7,2864.4,0.002]
[1769365582814,8.984906,2865.7,2864.5,0.731]
[1769365583022,0.2335703,2865.4,2864.4,0.002]
[1769365583220,0.96092583,2865.3,2864.4,0.002]
[1769365583844,11.342052,2865.2,2864.4,0.002]
[1769365584025,0.96092583,2865.3,2864.4,0.001]
[1769365584224,10.08231,2865.2,2864.4,0.001]
[1769365584427,8.08231,2865.2,2864.4,0.001]
[1769365584648,0.90432358,2865.1,2864.6,0.001]
[1769365584827,9.08231,2865.2,2864.6,0.001]
[1769365585025,9.08231,2865.2,2864.2,3.92e-06]
[1769365585026,0.2335703,2865.1,2864.2,3.92e-06]
[1769365585225,0.2335703,2864.9,2864.2,3.92e-06]
[1769365585928,0.49023755,2865.0,2864.2,3.92e-06]
[1769365586128,0.96092583,2865.3,2864.2,3.92e-06]
[1769365586338,0.9645703,2865.7,2864.2,3.92e-06]
[1769365586339,4.1057,2865.6,2864.2,3.92e-06]
[1769365586541,3.87256,2865.5,2864.2,3.92e-06]
[1769365586936,8.698004,2865.4,2864.2,3.92e-06]
[1769365587164,8.698004,2865.5,2864.2,3.92e-06]
[1769365587364,0.128,2865.6,2864.2,3.92e-06]
[1769365587524,8.139086,2865.5,2864.2,3.92e-06]
[1769365587724,0.8267086,2865.4,2864.2,3.92e-06]
[1769365587920,8.149096,2865.5,2864.2,3.92e-06]
[1769365588164,2.695416,2865.5,2864.2,3.92e-06]
[1769365588335,0.128,2865.6,2864.2,3.92e-06]
[1769365589345,5.82021,2865.6,2864.2,3.92e-06]
[1769365589545,9.48089,2865.4,2864.2,3.92e-06]
[1769365589746,0.99708514,2865.3,2864.2,3.92e-06]
[1769365589952,7.299504,2865.7,2864.2,3.92e-06]
[1769365590162,6.744504,2865.7,2864.2,3.92e-06]
[1769365590462,4.809504,2865.7,2864.2,3.92e-06]
[1769365590635,0.128,2865.8,2864.2,11.80559279]
[1769365590836,0.128,2865.8,2864.4,11.80558887]
[1769365591039,4.27628,2865.2,2864.2,3.92e-06]
[1769365591263,0.09815607,2865.3,2864.2,3.92e-06]
[1769365591427,0.22615607,2866.0,2864.2,3.92e-06]
[1769365591633,0.09815607,2865.6,2864.3,1.18075928]
[1769365592172,0.09815607,2865.6,2864.3,1.91175928]
[1769365592337,0.09815607,2865.6,2864.3,1.18075928]
[1769365592542,0.09815607,2865.4,2864.2,3.92e-06]
[1769365592742,0.09815607,2865.1,2864.2,3.92e-06]
[1769365592963,0.09815607,2864.9,2863.4,11.80558887]
[1769365593268,2.096807,2864.8,2863.3,0.731]
[1769365594227,2.096807,2864.8,2863.3,1.60411715]
[1769365594426,0.09815607,2864.9,2863.2,13.50087457]
[1769365594427,0.21949631,2864.7,2863.2,13.50087457]
[1769365594622,4.22002,2864.8,2863.3,0.731]
[1769365594845,4.22002,2864.8,2862.9,3.49287013]
[1769365594846,11.89601231,2863.8,2861.5,3.49466338]
[1769365595044,11.89601231,2863.8,2859.6,1.78902434]
[1769365595045,11.79785624,2862.1,2859.6,1.78902434]
[1769365595275,0.09815607,2862.7,2858.0,0.09815607]
[1769365595276,13.89585624,2863.3,2860.6,0.09815607]
[1769365595445,3.672,2863.2,2861.4,0.09815607]
[1769365595647,1.75678562,2863.1,2861.8,12.72489596]
[1769365595873,1.18960123,2863.7,2862.0,13.50025491]
[1769365596079,0.18190161,2864.0,2862.3,12.62673989]
[1769365596252,5.628469,2863.9,2862.4,0.731]
[1769365596572,2.313209,2863.7,2861.9,12.62673989]
[1769365596774,3.448684,2863.7,2862.0,13.35773989]
[1769365596943,5.396435,2863.8,2863.5,0.001]
[1769365597149,0.67829188,2863.7,2863.5,0.001]
[1769365597471,0.67829188,2863.7,2861.9,0.87354286]
[1769365597472,0.18187101,2864.2,2862.2,12.62673989]
[1769365597675,2.613981,2863.9,2862.2,12.62673989]
[1769365597873,10.911513,2863.9,2862.2,13.50017799]
[1769365598050,14.259293,2863.7,2862.1,0.002]
[1769365598248,0.128,2862.9,2860.9,0.87383994]
[1769365598451,30.0,2862.7,2860.7,12.62673989]
[1769365598657,4.760827,2862.6,2860.8,1.60487314]
[1769365598949,18.8917,2862.3,2860.4,0.731]
[1769365599275,2.60601,2862.1,2860.4,1.60499009]
[1769365599468,2.60601,2862.1,2860.4,1.604994]
[1769365599652,3.10511265,2862.2,2860.4,1.604994]
[1769365599984,3.10511265,2862.2,2860.0,0.731]
[1769365599985,4.0335703,2862.0,2860.0,0.731]
[1769365600186,2.213045,2861.9,2860.0,0.731]
[1769365600359,4.925381,2861.7,2860.0,0.731]
[1769365600680,0.25746153,2861.8,2860.1,0.731]
[1769365600854,11.89601231,2862.1,2860.1,0.731]
[1769365600855,0.2335703,2862.0,2860.1,0.731]
[1769365601066,0.09815607,2863.2,2860.3,12.62673989]
[1769365601260,0.09815607,2862.7,2860.5,12.62673989]
[1769365601585,5.217161,2863.1,2860.7,12.62673989]
[1769365601958,5.217161,2863.1,2860.8,13.50062132]
[1769365602281,3.701634,2862.9,2860.9,14.32635459]
[1769365602484,10.624637,2862.7,2861.0,0.732]
[1769365602654,6.757254,2862.7,2861.0,0.732]
[1769365602851,0.09815607,2862.6,2860.9,1.6996147]
[1769365603065,0.09815607,2862.6,2860.0,12.62673989]
[1769365603066,0.09815607,2861.6,2860.0,12.62673989]
[1769365603277,0.09815607,2861.6,2859.5,12.62673989]
[1769365603278,0.09815607,2861.0,2859.5,12.62673989]
[1769365603593,11.89601231,2861.0,2859.7,0.00115969]
[1769365603899,0.09815607,2861.4,2859.0,12.62673989]
[1769365603900,1.18960123,2860.9,2859.0,12.62673989]
[1769365604051,0.09815607,2861.4,2859.1,13.35873989]
[1769365604052,15.182635,2861.3,2859.1,13.35873989]
[1769365604249,0.09815607,2861.4,2859.1,13.35873989]
[1769365604483,11.79785624,2862.1,2859.5,12.62673989]
[1769365604685,0.09815607,2862.4,2860.1,12.62673989]
[1769365604874,0.09815607,2862.4,2859.8,0.09815607]
[1769365604875,4.177602,2862.3,2860.3,12.62673989]
[1769365605072,0.42757581,2862.2,2860.4,1.99467399]
[1769365605271,0.09815607,2862.4,2860.5,0.732]
[1769365605272,3.051406,2862.3,2860.5,0.732]
[1769365605587,5.066014,2862.5,2860.4,1.26267399]
[1769365605784,5.066014,2862.5,2860.5,0.732]
[1769365605957,5.928374,2862.3,2860.6,0.87394252]
[1769365606158,2.451404,2862.1,2860.5,0.732]
[1769365606373,0.09815607,2862.4,2860.5,0.732]
[1769365606374,0.25495601,2862.0,2860.5,14.23271115]
[1769365606560,2.610009,2862.3,2860.5,14.23271115]
[1769365606888,11.477111,2862.3,2860.5,14.23271115]
[1769365607257,0.09815607,2864.1,2861.3,12.62673989]
[1769365607456,0.09815607,2864.1,2862.0,12.62673989]
[1769365607457,7.308088,2863.6,2862.0,12.62673989]
[1769365607695,0.09815607,2863.7,2860.7,12.62673989]
[1769365607696,0.09815607,2861.5,2860.7,12.62673989]
[1769365607857,0.09815607,2861.1,2860.1,12.62673989]
[1769365608183,0.09815607,2861.1,2860.1,13.5008351]
[1769365608184,0.09815607,2860.5,2860.1,13.5008351]
[1769365608384,0.09815607,2860.5,2859.1,0.1823751]
[1769365608385,0.09815607,2860.4,2860.2,1.35008351]
[1769365608588,0.09815607,2860.6,2860.2,0.732]
[1769365608760,0.09815607,2860.4,2860.3,0.732]
[1769365609082,0.09815607,2860.9,2860.3,0.732]
[1769365609281,0.09815607,2861.3,2860.3,13.35873989]
[1769365609282,0.09815607,2861.0,2860.3,13.35873989]
[1769365609481,0.09815607,2861.0,2860.5,0.002]
[1769365609662,0.09815607,2861.1,2860.5,0.002]
[1769365610191,0.09815607,2860.9,2860.5,0.002]
[1769365610486,0.09815607,2861.1,2860.6,0.732]
[1769365610678,0.09815607,2860.9,2860.7,0.732]
[1769365611166,0.09815607,2861.3,2860.7,0.732]
[1769365611365,30.0,2861.5,2858.9,12.62673989]
[1769365611576,0.2335703,2861.6,2860.0,0.732]
[1769365611777,11.79785624,2860.7,2859.4,0.002]
[1769365612087,0.4640561,2861.5,2857.3,0.020207]
[1769365612088,0.128,2860.0,2858.2,0.732]
[1769365612288,15.157597,2859.7,2857.5,3.49952934]
[1769365612457,15.157597,2859.7,2857.3,0.020207]
[1769365612458,0.2335703,2859.5,2857.3,0.020207]
[1769365612660,11.79785624,2859.1,2857.3,0.020207]
[1769365612863,3.84792,2858.6,2856.5,0.0019948]
[1769365613057,3.38443835,2859.0,2856.5,0.0019948]
[1769365613058,4.192552,2858.9,2856.6,0.712]
[1769365613298,12.65785624,2859.4,2857.1,3.49998748]
[1769365613299,0.128,2859.2,2857.1,3.49998748]
[1769365613537,3.49626182,2860.2,2856.7,0.09815607]
[1769365613538,2.20694,2860.0,2858.2,0.87467331]
[1769365613661,1.21594265,2860.6,2858.3,0.76698583]
[1769365613863,4.24184779,2862.0,2858.3,0.76698583]
[1769365613864,13.412251,2861.7,2858.7,12.62673989]
[1769365614123,11.79785624,2862.2,2858.9,12.62673989]
[1769365614124,15.207173,2861.6,2858.9,12.62673989]
[1769365614395,30.0,2862.4,2859.1,12.62673989]
[1769365614692,12.52985624,2862.9,2859.9,12.62673989]
[1769365614693,9.061517,2862.9,2859.9,12.62673989]
[1769365614904,9.061517,2862.9,2859.6,0.10488777]
[1769365614905,7.912626,2862.9,2860.0,13.46362766]
[1769365615105,7.912626,2862.9,2860.7,12.62673989]
[1769365615106,2.01509508,2862.9,2860.7,12.62673989]
[1769365615307,0.74062441,2863.5,2861.1,12.62673989]
[1769365615511,14.408347,2863.6,2861.3,12.73162766]
[1769365615810,30.0,2864.5,2861.4,0.732]
[1769365616019,41.79785624,2864.5,2861.3,12.62673989]
[1769365616318,11.92585624,2863.6,2860.5,13.5006954]
[1769365616507,0.128,2863.4,2860.6,0.732]
[1769365616706,0.128,2863.4,2859.6,0.10488777]
[1769365616707,0.128,2862.7,2860.7,1.42326954]
[1769365616903,30.0,2862.4,2860.5,0.732]
[1769365617227,0.3615703,2861.9,2859.3,0.87433474]
[1769365617411,30.0,2861.6,2859.4,0.732]
[1769365617615,30.0,2861.6,2859.5,0.87427719]
[1769365617934,30.0,2861.6,2859.1,0.87439905]